fUST/lending_fUST_20250208
["ID","MTS","AMOUNT","RATE_DAILY","PERIOD"]
[352160010,1738966245375,-712.01,0.00011369,2]
[352160011,1738966245385,-500.0,0.00011369,2]
[352160012,1738966245395,-500.0,0.00011369,2]
[352160013,1738966245406,-500.0,0.00011369,2]
[352160014,1738966245416,-742.59,0.00011369,2]
[352160015,1738966245426,-500.0,0.00011369,2]
[352160016,1738966245436,-648.52,0.00011369,2]
[352160017,1738966245447,-654.15,0.00011369,2]
[352160018,1738966245456,-500.0,0.00011369,2]
[352160019,1738966245466,-500.0,0.00011369,2]
[352160020,1738966245476,-820.07,0.00011369,2]
[352160021,1738966245486,-701.75,0.00011369,2]
[352160022,1738966245496,-500.0,0.00011369,2]
[352160023,1738966245505,-500.0,0.00011369,2]
[352160024,1738966245516,-4280.58,0.00011369,2]
[352160025,1738966245525,-500.0,0.00011369,2]
[352160026,1738966245535,-2121.31,0.00011369,2]
[352160027,1738966245545,-500.0,0.00011369,2]
[352160028,1738966245554,-1256.56,0.00011369,2]
[352160029,1738966245563,-500.0,0.00011369,2]
[352160030,1738966245572,-533.34,0.00011369,2]
[352160031,1738966245582,-425.84481811,0.00011369,2]
[352160032,1738966245591,-2713.67,0.00011369,2]
[352160033,1738966245601,-500.0,0.00011369,2]
[352160034,1738966245613,-1549.39,0.00011369,2]
[352160035,1738966245623,-500.0,0.00011369,2]
[352160036,1738966245638,-540.1,0.00011369,2]
[352160037,1738966245648,-500.0,0.00011369,2]
[352160038,1738966245658,-500.0,0.00011369,2]
[352160039,1738966245668,-500.0,0.00011369,2]
[352160040,1738966245679,-1621.45,0.00011369,2]
[352160041,1738966245689,-2737.69,0.00011369,2]
[352160042,1738966245699,-1070.86,0.00011369,2]
[352160043,1738966245709,-535.79,0.00011369,2]
[352160044,1738966245718,-3700.02,0.00011369,2]
[352160045,1738966245728,-500.0,0.00011369,2]
[352160046,1738966245738,-500.0,0.00011369,2]
[352160047,1738966245749,-9168.11,0.00011369,2]
[352160048,1738966245759,-1832.81,0.00011369,2]
[352160049,1738966245769,-500.0,0.00011369,2]
[352160050,1738966245778,-1817.78,0.00011369,2]
[352160052,1738966245788,-500.0,0.00011369,2]
[352160053,1738966245798,-500.0,0.00011369,2]
[352160054,1738966245807,-500.0,0.00011369,2]
[352160055,1738966245816,-764.93,0.00011369,2]
[352160056,1738966245825,-755.41,0.00011369,2]
[352160057,1738966245835,-500.0,0.00011369,2]
[352160058,1738966245844,-238.14,0.00011369,2]
[352160059,1738966245853,-500.0,0.00011369,2]
[352160060,1738966245863,-511.3,0.00011369,2]
[352160061,1738966245872,-958.98,0.00011369,2]
[352160062,1738966245881,-35548.87,0.00011369,2]
[352160064,1738966245890,-1348.92,0.00011369,2]
[352160065,1738966245899,-500.0,0.00011369,2]
[352160066,1738966245908,-500.0,0.00011369,2]
[352160067,1738966245918,-500.0,0.00011369,2]
[352160068,1738966245927,-1554.22,0.00011369,2]
[352160069,1738966245936,-500.0,0.00011369,2]
[352160070,1738966245945,-14257.4,0.00011369,2]
[352160071,1738966245955,-500.0,0.00011369,2]
[352160072,1738966245964,-3296.13,0.00011369,2]
[352160073,1738966245973,-740.86,0.00011369,2]
[352160074,1738966245982,-704.61,0.00011369,2]
[352160075,1738966245991,-552.85,0.00011369,2]
[352160076,1738966246001,-519.95,0.00011369,2]
[352160077,1738966246010,-500.0,0.00011369,2]
[352160078,1738966246019,-500.0,0.00011369,2]
[352160079,1738966246028,-1561.99,0.00011369,2]
[352160080,1738966246038,-255.38240189,0.00011369,2]
[352160081,1738966246047,-1320.35,0.00011369,2]
[352160082,1738966246056,-3033.85,0.00011369,2]
[352160083,1738966246065,-3214.01,0.00011369,2]
[352160084,1738966246075,-500.0,0.00011369,2]
[352160085,1738966246084,-1556.45,0.00011369,2]
[352160086,1738966246093,-610.92,0.00011369,2]
[352160088,1738966246102,-567.64,0.00011369,2]
[352160090,1738966246113,-500.0,0.00011369,2]
[352160091,1738966246122,-925.15,0.00011369,2]
[352160092,1738966246131,-1094.43,0.00011369,2]
[352160093,1738966246141,-1139.41,0.00011369,2]
[352160094,1738966246150,-807.26,0.00011369,2]
[352160095,1738966246159,-500.0,0.00011369,2]
[352160096,1738966246169,-595.65,0.00011369,2]
[352160097,1738966246178,-534.82,0.00011369,2]
[352160098,1738966246188,-13264.03974987,0.00011421,2]
[352160099,1738966246198,-500.0,0.00011459,2]
[352160100,1738966246207,-783.75877785,0.000115,2]
[352160101,1738966246216,-151.0,0.000115,2]
[352160103,1738966246226,-500.0,0.00011506,2]
[352160104,1738966246235,-500.0,0.00011506,2]
[352160105,1738966246245,-500.0,0.00011506,2]
[352160107,1738966246255,-500.0,0.00011506,2]
[352160108,1738966246264,-516.72,0.00011506,2]
[352160109,1738966246274,-500.0,0.00011506,2]
[352160110,1738966246283,-528.16,0.00011506,2]
[352160111,1738966246293,-500.0,0.00011506,2]
[352160112,1738966246302,-500.0,0.00011506,2]
[352160113,1738966246312,-712.01,0.00011506,2]
[352160114,1738966246321,-500.0,0.00011506,2]
[352160115,1738966246331,-500.0,0.00011506,2]
[352160116,1738966246340,-500.0,0.00011506,2]
[352160117,1738966246349,-742.59,0.00011506,2]
[352160118,1738966246358,-500.0,0.00011506,2]
[352160119,1738966246371,-648.52,0.00011506,2]
[352160120,1738966246385,-654.15,0.00011506,2]
[352160121,1738966246395,-500.0,0.00011506,2]
[352160122,1738966246404,-500.0,0.00011506,2]
[352160123,1738966246414,-820.07,0.00011506,2]
[352160124,1738966246424,-701.75,0.00011506,2]
[352160125,1738966246433,-500.0,0.00011506,2]
[352160126,1738966246443,-500.0,0.00011506,2]
[352160127,1738966246452,-4280.58,0.00011506,2]
[352160128,1738966246461,-452.5283191,0.00011506,2]
[352160129,1738966246471,-2121.31,0.00011506,2]
[352160130,1738966246479,-500.0,0.00011506,2]
[352160131,1738966246488,-1256.56,0.00011506,2]
[352160132,1738966246498,-500.0,0.00011506,2]
[352160133,1738966246507,-533.34,0.00011506,2]
[352160134,1738966246516,-2713.67,0.00011506,2]
[352160135,1738966246526,-500.0,0.00011506,2]
[352160136,1738966246535,-1549.39,0.00011506,2]
[352160137,1738966246545,-500.0,0.00011506,2]
[352160138,1738966246555,-540.1,0.00011506,2]
[352160139,1738966246565,-500.0,0.00011506,2]
[352160140,1738966246574,-500.0,0.00011506,2]
[352160141,1738966246584,-500.0,0.00011506,2]
[352160142,1738966246594,-1621.45,0.00011506,2]
[352160143,1738966246603,-2737.69,0.00011506,2]
[352160144,1738966246613,-1070.86,0.00011506,2]
[352160145,1738966246622,-535.79,0.00011506,2]
[352160146,1738966246635,-3700.02,0.00011506,2]
[352160147,1738966246646,-500.0,0.00011506,2]
[352160148,1738966246659,-184.96979171,0.00011506,2]
[352160149,1738966246669,-9168.11,0.00011506,2]
[352160150,1738966246679,-1832.81,0.00011506,2]
[352160151,1738966246689,-1817.78,0.00011506,2]
[352160152,1738966246698,-500.0,0.00011506,2]
[352160153,1738966246708,-500.0,0.00011506,2]
[352160154,1738966246718,-500.0,0.00011506,2]
[352160155,1738966246728,-764.93,0.00011506,2]
[352160156,1738966246738,-755.41,0.00011506,2]
[352160157,1738966246748,-500.0,0.00011506,2]
[352160158,1738966246757,-500.0,0.00011506,2]
[352160159,1738966246766,-511.3,0.00011506,2]
[352160160,1738966246776,-958.98,0.00011506,2]
[352160161,1738966246786,-35548.87,0.00011506,2]
[352160162,1738966246795,-1348.92,0.00011506,2]
[352160163,1738966246804,-500.0,0.00011506,2]
[352160164,1738966246814,-500.0,0.00011506,2]
[352160165,1738966246823,-500.0,0.00011506,2]
[352160166,1738966246832,-1554.22,0.00011506,2]
[352160167,1738966246841,-500.0,0.00011506,2]
[352160168,1738966246850,-14257.4,0.00011506,2]
[352160169,1738966246859,-500.0,0.00011506,2]
[352160170,1738966246869,-3296.13,0.00011506,2]
[352160171,1738966246878,-740.86,0.00011506,2]
[352160172,1738966246887,-704.61,0.00011506,2]
[352160173,1738966246897,-552.85,0.00011506,2]
[352160174,1738966246906,-519.95,0.00011506,2]
[352160175,1738966246915,-500.0,0.00011506,2]
[352160176,1738966246924,-500.0,0.00011506,2]
[352160177,1738966246934,-1561.99,0.00011506,2]
[352160178,1738966246943,-1320.35,0.00011506,2]
[352160179,1738966246952,-3033.85,0.00011506,2]
[352160180,1738966246961,-3214.01,0.00011506,2]
[352160181,1738966246971,-347.32590083,0.00011506,2]
[352160182,1738966246980,-1556.45,0.00011506,2]
[352160183,1738966246990,-610.92,0.00011506,2]
[352160184,1738966247000,-567.64,0.00011506,2]
[352160185,1738966247009,-500.0,0.00011506,2]
[352160186,1738966247019,-925.15,0.00011506,2]
[352160187,1738966247028,-1139.41,0.00011506,2]
[352160188,1738966247038,-807.26,0.00011506,2]
[352160189,1738966247047,-331.75,0.00011506,2]
[352160190,1738966247056,-595.65,0.00011506,2]
[352160191,1738966247066,-534.82,0.00011506,2]
[352160192,1738966247075,-500.0,0.00011517,2]
[352160193,1738966247085,-1000.0,0.00011521,2]
[352160194,1738966247095,-1000.0,0.00011521,2]
[352160195,1738966247104,-1000.0,0.00011521,2]
[352160196,1738966247115,-500.0,0.00011521,2]
[352160197,1738966247124,-500.0,0.00011539,2]
[352160198,1738966247138,-500.0,0.00011539,2]
[352160199,1738966247148,-150.028,0.00011561,2]
[352160200,1738966247157,-150.0,0.00011561,2]
[352160201,1738966247167,-537.0,0.00011561,2]
[352160202,1738966247177,-1975.0,0.00011561,2]
[352160203,1738966247186,-2296.0,0.00011561,2]
[352160204,1738966247197,-396.0,0.00011561,2]
[352160205,1738966247207,-404.458,0.00011561,2]
[352160206,1738966247217,-151.0,0.00011561,2]
[352160207,1738966247226,-500.0,0.00011643,2]
[352160208,1738966247235,-500.0,0.00011643,2]
[352160209,1738966247245,-500.0,0.00011643,2]
[352160210,1738966247255,-602.6733893,0.00011643,2]
[352160211,1738966247264,-516.72,0.00011643,2]
[352160212,1738966247274,-500.0,0.00011643,2]
[352160213,1738966247284,-528.16,0.00011643,2]
[352160214,1738966247294,-500.0,0.00011643,2]
[352160215,1738966247304,-500.0,0.00011643,2]
[352160216,1738966247314,-712.01,0.00011643,2]
[352160217,1738966247323,-500.0,0.00011643,2]
[352160218,1738966247333,-500.0,0.00011643,2]
[352160219,1738966247343,-500.0,0.00011643,2]
[352160220,1738966247354,-742.59,0.00011643,2]
[352160221,1738966247365,-500.0,0.00011643,2]
[352160222,1738966247375,-648.52,0.00011643,2]
[352160223,1738966247385,-654.15,0.00011643,2]
[352160224,1738966247396,-500.0,0.00011643,2]
[352160225,1738966247407,-500.0,0.00011643,2]
[352160226,1738966247418,-820.07,0.00011643,2]
[352160227,1738966247428,-701.75,0.00011643,2]
[352160228,1738966247440,-500.0,0.00011643,2]
[352160229,1738966247451,-500.0,0.00011643,2]
[352160230,1738966247462,-4280.58,0.00011643,2]
[352160231,1738966247472,-2121.31,0.00011643,2]
[352160232,1738966247491,-500.0,0.00011643,2]
[352160233,1738966247502,-268.75927049,0.00011643,2]
[352160234,1738966247512,-1256.56,0.00011643,2]
[352160235,1738966247523,-500.0,0.00011643,2]
[352160236,1738966247535,-533.34,0.00011643,2]
[352160237,1738966247546,-2713.67,0.00011643,2]
[352160238,1738966247557,-500.0,0.00011643,2]
[352160239,1738966247567,-1549.39,0.00011643,2]
[352160240,1738966247576,-500.0,0.00011643,2]
[352160241,1738966247586,-540.1,0.00011643,2]
[352160242,1738966247596,-500.0,0.00011643,2]
[352160243,1738966247605,-500.0,0.00011643,2]
[352160244,1738966247617,-500.0,0.00011643,2]
[352160245,1738966247626,-1621.45,0.00011643,2]
[352160246,1738966247635,-2737.69,0.00011643,2]
[352160247,1738966247646,-1070.86,0.00011643,2]
[352160248,1738966247656,-535.79,0.00011643,2]
[352160249,1738966247666,-3700.02,0.00011643,2]
[352160250,1738966247677,-500.0,0.00011643,2]
[352160251,1738966247687,-9168.11,0.00011643,2]
[352160252,1738966247696,-1832.81,0.00011643,2]
[352160253,1738966247705,-500.0,0.00011643,2]
[352160254,1738966247715,-1817.78,0.00011643,2]
[352160255,1738966247725,-500.0,0.00011643,2]
[352160256,1738966247735,-500.0,0.00011643,2]
[352160257,1738966247745,-764.93,0.00011643,2]
[352160258,1738966247754,-755.41,0.00011643,2]
[352160259,1738966247763,-500.0,0.00011643,2]
[352160260,1738966247773,-151.0,0.00011643,2]
[352160261,1738966247782,-500.0,0.00011643,2]
[352160262,1738966247791,-511.3,0.00011643,2]
[352160263,1738966247801,-958.98,0.00011643,2]
[352160264,1738966247811,-35548.87,0.00011643,2]
[352160265,1738966247821,-1348.92,0.00011643,2]
[352160266,1738966247831,-151.0,0.00011643,2]
[352160267,1738966247840,-500.0,0.00011643,2]
[352160268,1738966247850,-500.0,0.00011643,2]
[352160269,1738966248004,-151.0,0.00011643,2]
[352160270,1738966248015,-500.0,0.00011643,2]
[352160271,1738966248026,-1554.22,0.00011643,2]
[352160272,1738966248037,-500.0,0.00011643,2]
[352160273,1738966248047,-151.0,0.00011643,2]
[352160274,1738966248058,-1750.39687211,0.00011643,2]
[352160275,1738966248086,-674.17155353,0.00011643,2]
[352160276,1738966248100,-758.4281794,0.00011643,2]
[352160277,1738966248114,-4535.30537946,0.00011643,2]
[352160278,1738966248127,-6539.0980155,0.00011643,2]
[352160279,1738966248138,-500.0,0.00011643,2]
[352160280,1738966248151,-3296.13,0.00011643,2]
[352160281,1738966248161,-740.86,0.00011643,2]
[352160282,1738966248171,-704.61,0.00011643,2]
[352160283,1738966248181,-552.85,0.00011643,2]
[352160284,1738966248191,-519.95,0.00011643,2]
[352160285,1738966248201,-500.0,0.00011643,2]
[352160286,1738966248210,-500.0,0.00011643,2]
[352160287,1738966248221,-1561.99,0.00011643,2]
[352160288,1738966248232,-1320.35,0.00011643,2]
[352160289,1738966248242,-3033.85,0.00011643,2]
[352160290,1738966248253,-3214.01,0.00011643,2]
[352160291,1738966248264,-1556.45,0.00011643,2]
[352160292,1738966248275,-610.92,0.00011643,2]
[352160293,1738966248285,-567.64,0.00011643,2]
[352160294,1738966248295,-500.0,0.00011643,2]
[352160295,1738966248306,-925.15,0.00011643,2]
[352160296,1738966248317,-1139.41,0.00011643,2]
[352160297,1738966248328,-807.26,0.00011643,2]
[352160298,1738966248338,-595.65,0.00011643,2]
[352160299,1738966248348,-534.82,0.00011643,2]
[352160300,1738966248358,-152.135,0.0001171,2]
[352160301,1738966248372,-500.0,0.0001178,2]
[352160302,1738966248384,-500.0,0.0001178,2]
[352160303,1738966248395,-500.0,0.0001178,2]
[352160304,1738966248405,-516.72,0.0001178,2]
[352160305,1738966248416,-500.0,0.0001178,2]
[352160306,1738966248426,-528.16,0.0001178,2]
[352160307,1738966248436,-500.0,0.0001178,2]
[352160308,1738966248446,-500.0,0.0001178,2]
[352160309,1738966248456,-712.01,0.0001178,2]
[352160310,1738966248467,-500.0,0.0001178,2]
[352160311,1738966248477,-500.0,0.0001178,2]
[352160312,1738966248488,-500.0,0.0001178,2]
[352160313,1738966248499,-742.59,0.0001178,2]
[352160314,1738966248510,-500.0,0.0001178,2]
[352160315,1738966248521,-648.52,0.0001178,2]
[352160316,1738966248530,-654.15,0.0001178,2]
[352160317,1738966248541,-151.0,0.0001178,2]
[352160318,1738966248551,-500.0,0.0001178,2]
[352160319,1738966248562,-500.0,0.0001178,2]
[352160320,1738966248572,-387.640793,0.0001178,2]
[352160321,1738966248584,-799.353795,0.0001178,2]
[352160322,1738966248595,-387.640793,0.0001178,2]
[352160323,1738966248606,-799.353795,0.0001178,2]
[352160324,1738966248618,-820.07,0.0001178,2]
[352160325,1738966248629,-701.75,0.0001178,2]
[352160326,1738966248643,-245.391576,0.0001178,2]
[352160327,1738966248653,-500.0,0.0001178,2]
[352160328,1738966248665,-245.391576,0.0001178,2]
[352160329,1738966248675,-500.0,0.0001178,2]
[352160330,1738966248685,-4280.58,0.0001178,2]
[352160331,1738966248695,-151.0,0.0001178,2]
[352160332,1738966248706,-2121.31,0.0001178,2]
[352160333,1738966248716,-151.0,0.0001178,2]
[352160334,1738966248728,-500.0,0.0001178,2]
[352160335,1738966248738,-1256.56,0.0001178,2]
[352160336,1738966248748,-500.0,0.0001178,2]
[352160337,1738966248758,-533.34,0.0001178,2]
[352160338,1738966248768,-2713.67,0.0001178,2]
[352160339,1738966248778,-500.0,0.0001178,2]
[352160340,1738966248789,-1549.39,0.0001178,2]
[352160341,1738966248800,-162.572838,0.0001178,2]
[352160342,1738966248810,-162.572838,0.0001178,2]
[352160343,1738966248821,-500.0,0.0001178,2]
[352160344,1738966248831,-540.1,0.0001178,2]
[352160345,1738966248842,-500.0,0.0001178,2]
[352160346,1738966248852,-500.0,0.0001178,2]
[352160347,1738966248862,-1621.45,0.0001178,2]
[352160348,1738966248871,-2737.69,0.0001178,2]
[352160349,1738966248881,-1070.86,0.0001178,2]
[352160350,1738966248892,-535.79,0.0001178,2]
[352160351,1738966248902,-3700.02,0.0001178,2]
[352160352,1738966248912,-500.0,0.0001178,2]
[352160353,1738966248922,-9168.11,0.0001178,2]
[352160354,1738966248931,-1832.81,0.0001178,2]
[352160355,1738966248941,-500.0,0.0001178,2]
[352160356,1738966248950,-1817.78,0.0001178,2]
[352160357,1738966248959,-500.0,0.0001178,2]
[352160358,1738966248969,-500.0,0.0001178,2]
[352160359,1738966248978,-764.93,0.0001178,2]
[352160360,1738966248988,-755.41,0.0001178,2]
[352160361,1738966248998,-500.0,0.0001178,2]
[352160362,1738966249008,-500.0,0.0001178,2]
[352160363,1738966249018,-511.3,0.0001178,2]
[352160364,1738966249028,-958.98,0.0001178,2]
[352160365,1738966249038,-1512.32251813,0.0001178,2]
[352160366,1738966249189,-2446.61900478,0.0001178,2]
[352160367,1738966249234,-395.0,0.00011095,2]
[352160368,1738966249246,-105.0,0.00011095,2]
[352160369,1738966249255,-180.43980486,0.0001178,2]
[352160370,1738966249267,-19439.79920527,0.0001178,2]
[352160371,1738966250052,-500.0,0.00010951,2]
[352160372,1738966250062,-432.00001379,0.00010951,2]
[352160373,1738966250073,-500.0,0.00010951,2]
[352160374,1738966250082,-500.0,0.00010951,2]
[352160375,1738966250092,-500.0,0.00010951,2]
[352160376,1738966250102,-500.0,0.00010951,2]
[352160377,1738966250113,-9982.73,0.00010958,2]
[352160378,1738966250123,-500.0,0.00010958,2]
[352160379,1738966250132,-500.0,0.00010958,2]
[352160380,1738966250142,-500.0,0.00010958,2]
[352160381,1738966250151,-500.0,0.00010958,2]
[352160382,1738966250161,-500.0,0.00010958,2]
[352160383,1738966250170,-9982.73,0.00011095,2]
[352160384,1738966250180,-500.0,0.00011232,2]
[352160385,1738966250190,-9982.73,0.00011232,2]
[352160386,1738966250200,-500.0,0.00011369,2]
[352160387,1738966250209,-9982.73,0.00011369,2]
[352160388,1738966250219,-500.0,0.00011506,2]
[352160389,1738966250229,-9982.73,0.00011506,2]
[352160390,1738966250239,-243.4237656,0.00011643,2]
[352160391,1738966250249,-9982.73,0.00011643,2]
[352160392,1738966250260,-11969.68946696,0.0001178,2]
[352160393,1738966250269,-1348.92,0.0001178,2]
[352160394,1738966250279,-191.575072,0.0001178,2]
[352160395,1738966250288,-500.0,0.0001178,2]
[352160396,1738966250298,-283.21467601,0.0001178,2]
[352160397,1738966250307,-191.575072,0.0001178,2]
[352160398,1738966250317,-500.0,0.0001178,2]
[352160399,1738966250327,-1554.22,0.0001178,2]
[352160400,1738966250336,-500.0,0.0001178,2]
[352160401,1738966250379,-14257.4,0.0001178,2]
[352160402,1738966250388,-449.17750337,0.0001178,2]
[352160403,1738966250520,-50.82249663,0.0001178,2]
[352160404,1738966250529,-449.17750337,0.0001178,2]
[352160405,1738966251202,-500.0,0.00010958,2]
[352160406,1738966251212,-500.0,0.00010958,2]
[352160407,1738966251221,-500.0,0.00010958,2]
[352160408,1738966251231,-416.33912913,0.00011095,2]
[352160409,1738966251242,-83.66087087,0.00011095,2]
[352160410,1738966251252,-188.53033655,0.00011095,2]
[352160449,1738967432974,-300.0,8.882e-05,2]
[352160451,1738967432984,-637.04531065,8.883e-05,2]
[352160453,1738967432996,-305.85782262,8.883e-05,2]
[352160454,1738967433007,-6694.26189881,8.883e-05,2]
[352160455,1738967433019,-671.71412771,8.883e-05,2]
[352160456,1738967433039,-785.20990495,8.883e-05,2]
[352160463,1738967438391,-3438.2302482,8.883e-05,2]
[352160464,1738967438423,-12367.68068706,8.883e-05,2]
[352160465,1738967438433,-317.7,8.911e-05,2]
[352160466,1738967438443,-694.2331997,9.341e-05,2]
[352160467,1738967438452,-4320.613,9.55e-05,2]
[352160468,1738967438462,-1678.57156413,9.647e-05,2]
[352160469,1738967438471,-152.50393137,9.746e-05,2]
[352160470,1738967438481,-500.0,9.746e-05,2]
[352160472,1738967438490,-500.0,9.746e-05,2]
[352160474,1738967438500,-500.0,9.746e-05,2]
[352160475,1738967438509,-500.0,9.746e-05,2]
[352160477,1738967438519,-500.0,9.746e-05,2]
[352160479,1738967438528,-500.0,9.746e-05,2]
[352160481,1738967438538,-500.0,9.746e-05,2]
[352160483,1738967438547,-500.0,9.746e-05,2]
[352160486,1738967438561,-500.0,9.746e-05,2]
[352160488,1738967438570,-500.0,9.746e-05,2]
[352160490,1738967438580,-500.0,9.746e-05,2]
[352160492,1738967438589,-500.0,9.746e-05,2]
[352160493,1738967438599,-602.73423907,9.746e-05,2]
[352160494,1738967438609,-500.0,9.746e-05,2]
[352160495,1738967438618,-500.0,9.746e-05,2]
[352160496,1738967438628,-500.0,9.746e-05,2]
[352160497,1738967438637,-500.0,9.746e-05,2]
[352160498,1738967438647,-500.0,9.746e-05,2]
[352160499,1738967438657,-500.0,9.746e-05,2]
[352160500,1738967438667,-500.0,9.746e-05,2]
[352160501,1738967438676,-500.0,9.746e-05,2]
[352160502,1738967438685,-500.0,9.746e-05,2]
[352160503,1738967438695,-500.0,9.746e-05,2]
[352160504,1738967438705,-500.0,9.746e-05,2]
[352160505,1738967438715,-500.0,9.746e-05,2]
[352160506,1738967438725,-500.0,9.746e-05,2]
[352160507,1738967438735,-387.46001973,9.746e-05,2]
[352160508,1738967438744,-1200.0,9.747e-05,2]
[352160509,1738967438754,-537.4491748,9.757e-05,2]
[352160510,1738967438763,-420.0,9.771e-05,2]
[352160511,1738967438773,-245.62351999,9.96e-05,2]
[352160512,1738967438783,-587.0,0.00010748,2]
[352160513,1738967438794,-237.87041023,0.00010851,2]
[352160514,1738967438808,-542.40511415,0.00010851,2]
[352160515,1738967438817,-188.897452,0.00010858,2]
[352160516,1738967438827,-188.89745196,0.00010892,2]
[352160517,1738967438836,-188.89745196,0.00010926,2]
[352160518,1738967438845,-194.1863234,0.00010951,2]
[352160519,1738967438854,-500.0,0.00010957,2]
[352160520,1738967438864,-311.63858375,0.00010957,2]
[352160521,1738967438874,-398.35468916,0.00010957,2]
[352160522,1738967438884,-500.0,0.00010958,2]
[352160523,1738967438894,-502.36438095,0.00010958,2]
[352160524,1738967438904,-500.0,0.00010958,2]
[352160525,1738967438914,-501.87761352,0.00010958,2]
[352160526,1738967438924,-500.0,0.00010958,2]
[352160527,1738967438934,-500.0,0.00010958,2]
[352160528,1738967438943,-580.00675631,0.00010958,2]
[352160529,1738967438953,-500.0,0.00010958,2]
[352160530,1738967438962,-500.0,0.00010958,2]
[352160531,1738967438973,-504.00889687,0.00010958,2]
[352160532,1738967438982,-500.0,0.00010958,2]
[352160533,1738967438992,-501.71050331,0.00010958,2]
[352160534,1738967439003,-500.0,0.00010958,2]
[352160535,1738967439012,-500.0,0.00010958,2]
[352160536,1738967439022,-500.0,0.00010958,2]
[352160537,1738967439031,-500.0,0.00010958,2]
[352160538,1738967439043,-503.54681865,0.00010958,2]
[352160539,1738967439058,-500.0,0.00010958,2]
[352160540,1738967439067,-500.0,0.00010958,2]
[352160541,1738967439076,-588.83611458,0.00010958,2]
[352160542,1738967439086,-500.0,0.00010958,2]
[352160543,1738967439095,-502.59010791,0.00010958,2]
[352160544,1738967439105,-511.0365974,0.00010958,2]
[352160545,1738967439115,-500.0,0.00010958,2]
[352160546,1738967439125,-500.0,0.00010958,2]
[352160547,1738967439135,-515.73902246,0.00010958,2]
[352160548,1738967439145,-500.0,0.00010958,2]
[352160549,1738967439155,-500.0,0.00010958,2]
[352160550,1738967439165,-501.90805938,0.00010958,2]
[352160551,1738967439175,-500.0,0.00010958,2]
[352160552,1738967439185,-504.5196841,0.00010958,2]
[352160553,1738967439194,-647.10610681,0.00010958,2]
[352160554,1738967439205,-500.0,0.00010958,2]
[352160555,1738967439215,-500.0,0.00010958,2]
[352160556,1738967439224,-500.0,0.00010958,2]
[352160557,1738967439234,-540.78963875,0.00010958,2]
[352160558,1738967439243,-500.0,0.00010958,2]
[352160559,1738967439253,-506.17343592,0.00010958,2]
[352160560,1738967439262,-500.0,0.00010958,2]
[352160561,1738967439272,-500.0,0.00010958,2]
[352160562,1738967439281,-500.0,0.00010958,2]
[352160563,1738967439291,-500.0,0.00010958,2]
[352160564,1738967439305,-500.22703319,0.00010958,2]
[352160565,1738967439314,-500.0,0.00010958,2]
[352160566,1738967439324,-500.0,0.00010958,2]
[352160567,1738967439333,-500.0,0.00010958,2]
[352160568,1738967439343,-500.0,0.00010958,2]
[352160569,1738967439353,-500.0,0.00010958,2]
[352160570,1738967439363,-500.0,0.00010958,2]
[352160571,1738967439373,-500.0,0.00010958,2]
[352160572,1738967439383,-500.0,0.00010958,2]